[Event "GER-ch Youth-U14 2022"]
[Site "Willingen"]
[Date "2022.06.08"]
[Round "5.9"]
[White "Udelnov, Valentin"]
[Black "Luebke, Florentin"]
[Result "1-0"]
[ECO "B35"]
[WhiteElo "1901"]
[BlackElo "1613"]
[Annotator "TA"]
[PlyCount "61"]
[EventDate "2022.06.05"]
[EventType "swiss"]
[EventRounds "9"]
[EventCountry "GER"]
[SourceTitle "playchess.com"]
[Source "ChessBase"]
[SourceQuality "1"]
[TimeControl "40/4500+30:900+30"]

{[%evp 14,61,27,17,35,20,37,19,19,8,20,24,23,0,0,0,0,0,0,-62,-75,-64,-71,-72,-24,-27,-27,-31,-34,-29,-20,-20,-26,-58,-22,-44,0,-26,-31,-32,-35,-37,0,-30,398,389,385,380,563,438]} 1. e4 {[%emt 0:00:00]} c5 {[%emt 0:00:00]} 2. Nf3 {[%emt 0:00:00]} Nc6 {[%emt 0:00:00]} 3. d4 {[%emt 0:00:00]} cxd4 {[%emt 0:00:00]} 4. Nxd4 {[%emt 0:00:00]} g6 {[%emt 0:00:00]} 5. Nc3 {[%emt 0:00:00]} Bg7 {[%emt 0:00:00]} 6. Be3 {[%emt 0:00:00]} Nf6 {[%emt 0:00:00]} 7. Bc4 {[%emt 0:00:00]} O-O {[%emt 0:00:00]} 8. Bb3 {[%emt 0:00:00]} Re8 {[%emt 0:00:00] B35: Sicilian: Accelerated Dragon with 5 Nc3: main line.} 9. f3 {[%emt 0:00:00][%cal Bf2f3,Bf3f4][%mdl 32]} e6 {[%emt 0:00:00]} 10. f4 {[%emt 0:00:00]} d6 {[%emt 0:00:00][%cal Of6d5] [#] The position is equal.} (10... Ng4 {looks sharper.} 11. Bg1 h5 12. e5 d5) 11. Qd3 $146 {[%emt 0:18:20]} ({Predecessor:} 11. Ndb5 Bf8 12. Qf3 a6 13. Nd4 Na5 14. O-O b5 15. f5 exf5 16. exf5 Bb7 17. Bxf7+ Kxf7 {½-½ (39) Navara,D (2745)-Mamedov,R (2704) Shamkir 2018}) 11... Nxd4 {[%emt 0:05:22]} 12. Bxd4 {[%emt 0:01:30]} e5 {[%emt 0:01:07]} 13. Be3 {[%emt 0:00:10]} exf4 {[%emt 0:02:18]} 14. Bxf4 {[%emt 0:00:19]} Bf5 {[%emt 0:04:57]} 15. O-O $1 {[%emt 0:16:37]} (15. Qc4 d5 16. Qb5 Nxe4 $17) 15... Nxe4 {[%emt 0:05:57]} 16. Nxe4 {[%emt 0:00:08]} (16. Bxf7+ $1 $11 Kxf7 17. Qd5+ (17. Nxe4 $2 Rxe4 18. Qb3+ Ke8 $19) 17... Be6 18. Qxb7+ (18. Qxe4 Kg8 $15) 18... Kg8 19. Nxe4) 16... Rxe4 $15 {[%emt 0:00:38]} (16... Bxe4 17. Bxf7+ $1 Kh8 18. Qd2 $11) 17. Qd5 {[%emt 0:01:19]} Qb6+ {[%emt 0:02:02]} 18. Kh1 {[%emt 0:00:14]} Rf8 {[%emt 0:00:51]} (18... Bxb2 19. Qxf7+ Kh8 {[#]} 20. Bg5 $1 $16) (18... Re6 $17) 19. Bxd6 {[%emt 0:06:10][%cal Bf4d6,Bd6c5,Bc5b6,Bb6e3,Be3a7,Ba7f2,Bf2d4][%mdl 32]} Rd4 {[%emt 0:02:07][%cal Be4d4,Bd4d5,Bd5d2][%mdl 32]} 20. Bc5 {[%emt 0:00:11]} Rxd5 {[%emt 0:00:11]} 21. Bxb6 {[%emt 0:00:02]} Rd2 {[%emt 0:00:22]} 22. Be3 {[%emt 0:07:24]} Re2 {[%emt 0:02:29]} 23. Bxa7 {[%emt 0:03:03]} Bxb2 {[%emt 0:11:40]} 24. Rab1 {[%emt 0:01:53]} Be4 {[%emt 0:08:05][%cal Oe2g2]} 25. Rf2 {[%emt 0:12:51]} (25. Rxb2 $5 {[%cal Ra7f2]} Bxg2+ 26. Kg1 Bxf1 27. Kxf1 Rxh2 28. Bf2 $11) 25... Rxf2 {[%emt 0:01:09]} 26. Bxf2 {[%emt 0:00:05] [#]} Rd8 $1 {[%emt 0:02:23][%cal Od8d2]} 27. Re1 {[%emt 0:02:48]} ({Don't go for} 27. Rxb2 $2 Rd1+ 28. Bg1 Rd2 $19) 27... Rd2 {[%emt 0:00:37]} 28. Kg1 {[%emt 0:00:14]} Bd4 $2 {[%emt 0:02:08][%mdl 8192]} ({Much worse is} 28... Bxc2 29. Be3 Bxb3 30. Bxd2 Bxa2 31. Re8+ Kg7 32. Re2 $11) (28... Bc6 $11) 29. Bxd4 $18 {[%emt 0:01:37]} Rxg2+ {[%emt 0:01:30]} 30. Kf1 {[%emt 0:00:12]} Bc6 {[%emt 0:00:01]} (30... Rg4 $142 31. Be5 Bc6) 31. Bd5 {[%emt 0:02:03] Weighted Error Value: White=0.13 (very precise) /Black=0.57} 1-0

[Event "GER-ch Youth-U14 2022"]
[Site "Willingen"]
[Date "2022.06.08"]
[Round "5.10"]
[White "Kocharin, Timur"]
[Black "Chinguun Sundui"]
[Result "1/2-1/2"]
[ECO "D11"]
[WhiteElo "1867"]
[BlackElo "1731"]
[Annotator "NA RC COMBH"]
[PlyCount "86"]
[EventDate "2022.06.05"]
[EventType "swiss"]
[EventRounds "9"]
[EventCountry "GER"]
[SourceTitle "playchess.com"]
[Source "ChessBase"]
[SourceQuality "1"]
[TimeControl "40/4500+30:900+30"]

1. d4 {[%emt 0:00:00]} d5 {[%emt 0:00:00]} 2. c4 {[%emt 0:00:00]} c6 {[%emt 0:00:00]} 3. Nf3 {[%emt 0:00:00]} Nf6 {[%emt 0:00:00]} 4. g3 {[%emt 0:00:00]} Bf5 {[%emt 0:00:00]} 5. Nc3 {[%emt 0:00:00]} e6 {[%emt 0:00:00]} 6. Nh4 {[%emt 0:00:00]} Be4 {[%emt 0:00:00]} 7. f3 {[%emt 0:00:00]} Bg6 {[%emt 0:00:00]} 8. Qb3 {[%emt 0:00:00]} Qb6 {[%emt 0:00:00]} 9. Nxg6 {[%emt 0:00:00] The old main line.} hxg6 {[%emt 0:00:00]} 10. c5 {[%emt 0:00:00]} Qxb3 {[%emt 0:00:00]} 11. axb3 {[%emt 0:00:00]} Nbd7 {[%emt 0:00:00] [#]} 12. f4 $146 {[%emt 0:02:06]} ({Predecessor:} 12. b4 a6 13. b5 cxb5 14. Nxb5 Rc8 15. Nc3 e5 16. e3 Be7 17. b4 O-O 18. Bd2 exd4 19. exd4 {0-1 (55) Tomashevsky,E (2706)-Yanchenko,R (2467) Chess.com INT 2021}) 12... Ne4 {[%emt 0:00:00]} 13. Nxe4 {[%emt 0:09:38]} dxe4 {[%emt 0:00:00]} 14. g4 {[%emt 0:07:43]} Be7 {[%emt 0:31:09]} 15. Bg2 {[%emt 0:12:39]} f5 {[%emt 0:00:33]} 16. g5 {[%emt 0:00:43]} Nb8 {[%emt 0:00:19]} 17. Bd2 {[%emt 0:04:49]} Bd8 {[%emt 0:03:51]} 18. Kf2 {[%emt 0:08:29]} Na6 {[%emt 0:01:14]} 19. Ra4 {[%emt 0:02:36]} Nc7 {[%emt 0:00:40]} 20. Ba5 {[%emt 0:00:17]} Nd5 {[%emt 0:01:33]} 21. Bxd8 {[%emt 0:03:14]} Kxd8 {[%emt 0:00:06]} 22. e3 {[%emt 0:00:15]} Kc7 {[%emt 0:01:17]} 23. h3 {[%emt 0:01:55]} Rh4 {[%emt 0:04:24]} 24. Re1 {[%emt 0:02:24]} (24. Bf1 $11) 24... a6 $1 {[%emt 0:02:04]} 25. Bf1 {[%emt 0:05:21]} (25. Raa1 $11) 25... Rah8 {[%emt 0:02:20]} 26. Kg3 {[%emt 0:02:28]} R4h7 {[%emt 0:00:36]} 27. Bg2 {[%emt 0:01:28]} Ne7 {[%emt 0:03:14]} (27... Kd7 $11) 28. Bf1 {[%emt 0:00:58]} Nd5 {[%emt 0:00:22]} 29. Rc4 $11 {[%emt 0:00:33] should be considered.} Ne7 {[%emt 0:00:59]} 30. Rb4 {[%emt 0:00:57]} Nd5 {[%emt 0:00:54]} (30... Kb8 $15 {should be considered.}) 31. Ra4 {[%emt 0:00:20]} Ne7 {[%emt 0:00:24]} 32. Bg2 {[%emt 0:01:39]} Nd5 {[%emt 0:00:26]} 33. Kh2 {[%emt 0:05:11]} Rd8 {[%emt 0:00:41]} 34. Kg3 {[%emt 0:00:09]} Rdh8 {[%emt 0:00:14]} 35. Re2 {[%emt 0:00:30]} Ne7 {[%emt 0:00:27]} 36. Bf1 {[%emt 0:00:34]} Nd5 {[%emt 0:00:15]} 37. Rc4 {[%emt 0:01:07]} Ne7 {[%emt 0:00:54]} 38. Ra4 {[%emt 0:01:09]} Nd5 {[%emt 0:00:59]} 39. Re1 {[%emt 0:02:25]} Ne7 {[%emt 0:00:13]} 40. Rb4 {[%emt 0:02:10]} Nd5 {[%emt 0:00:11]} 41. Rc4 {[%emt 0:15:11]} Ne7 {[%emt 0:15:05]} 42. Kh2 {[%emt 0:02:35]} Nd5 $11 {[%emt 0:00:19]} 43. Re2 {[%emt 0:00:26]} Ne7 {[%emt 0:00:10]} 1/2-1/2

[Event "GER-ch Youth-U14 2022"]
[Site "Willingen"]
[Date "2022.06.08"]
[Round "5.11"]
[White "Kempe, Caius Emilian"]
[Black "Torosyan, Bagrat"]
[Result "1-0"]
[ECO "E81"]
[WhiteElo "1973"]
[BlackElo "1683"]
[Annotator "TA"]
[PlyCount "69"]
[EventDate "2022.06.05"]
[EventType "swiss"]
[EventRounds "9"]
[EventCountry "GER"]
[SourceTitle "playchess.com"]
[Source "ChessBase"]
[SourceQuality "1"]
[TimeControl "40/4500+30:900+30"]

{[%evp 24,69,0,-7,17,20,18,18,92,110,96,103,112,90,120,100,147,153,168,140,220,226,231,237,233,229,215,210,200,195,200,199,222,210,306,231,580,555,1145,1037,1088,1128,1870,1866,1997,1904,1274,1070]} 1. d4 {[%emt 0:00:00] Dolmatov,S} Nf6 {[%emt 0:00:00]} 2. c4 {[%emt 0:00:00]} g6 {[%emt 0:00:00]} 3. Nc3 {[%emt 0:00:00]} Bg7 {[%emt 0:00:00]} 4. e4 {[%emt 0:00:00]} d6 {[%emt 0:00:00]} 5. f3 {[%emt 0:00:00]} O-O {[%emt 0:00:00]} 6. Be3 {[%emt 0:00:00][%cal Bc1e3,Be3c5,Bc5e7][%mdl 32]} c5 {[%emt 0:00:00]} 7. dxc5 {[%emt 0:00:00]} dxc5 {[%emt 0:00:00]} 8. Qxd8 {[%emt 0:00:00]} Rxd8 {[%emt 0:00:00]} 9. Bxc5 {[%emt 0:00:00]} Nc6 {[%emt 0:00:00]} 10. Nd5 {[%emt 0:00:00]} Nd7 {[%emt 0:00:00]} 11. Nxe7+ {[%emt 0:00:00]} Nxe7 {[%emt 0:00:00]} 12. Bxe7 {[%emt 0:00:00]} Bxb2 {[%emt 0:00:00]} 13. Rb1 {[%emt 0:00:00][%cal Ba1b1,Bb1b2,Bb2b5][%mdl 32]} Re8 {[%emt 0:00:00] [#] Threatens to win with ...Bc3+. E81: King's Indian: Sämisch: 6th move deviations (including 6 Be3 c6).} (13... Bc3+ {keeps more tension.} 14. Kd1 Re8 15. Ne2 Bg7) 14. Rxb2 {[%emt 0:00:00]} Rxe7 {[%emt 0:00:00] [#]} 15. Ne2 $146 {[%emt 0:00:00][%cal Bg1e2,Be2f4,Bf4d5][%mdl 32]} ({Predecessor:} 15. Kf2 Nb6 16. Rc2 Be6 17. f4 Rc8 18. Nf3 Bxc4 19. Bxc4 Rxc4 20. Rxc4 Nxc4 21. e5 {1-0 (42) Miralles,G (2360)-Santo Roman,M (2360) Cannes 1986 MCL [Dolmatov,S]}) 15... Ne5 {[%emt 0:00:00]} (15... f5 $11) 16. Nf4 $16 {[%emt 0:00:00] Hoping for Nd5.} Rc7 {[%emt 0:04:26]} 17. Rb5 {[%emt 0:06:01]} Nd7 {[%emt 0:17:55]} 18. Be2 {[%emt 0:09:51]} a6 {[%emt 0:00:19]} 19. Rb4 {[%emt 0:00:44] White is more active.} b5 {[%emt 0:17:11]} (19... Rc5 $142 20. Rb2 Ra5) 20. Nd5 $36 {[%emt 0:02:36][%mdl 2048] Keeping Black busy.} Rc5 {[%emt 0:00:33]} 21. O-O {[%emt 0:00:17]} Ne5 {[%emt 0:04:35]} (21... Kg7 $16 22. Rfb1 (22. cxb5 axb5 23. Rb2 Ra5 $16) 22... Ra7 23. cxb5 axb5) 22. cxb5 $18 {[%emt 0:10:24]} axb5 {[%emt 0:01:19]} 23. Rxb5 {[%emt 0:01:22]} ({Resist} 23. Bxb5 $6 Rxa2 24. Rd1 Rcc2 $14) 23... Rc2 {[%emt 0:10:29]} 24. Bd1 {[%emt 0:00:53]} Rd2 {[%emt 0:00:59]} 25. Nb4 {[%emt 0:05:17]} Nc4 {[%emt 0:16:43]} 26. Bb3 {[%emt 0:01:03]} Be6 {[%emt 0:00:51]} 27. Rf2 {[%emt 0:04:16]} Rd6 {[%emt 0:04:23]} 28. Nd5 {[%emt 0:11:09]} Na5 {[%emt 0:05:25]} (28... Bxd5 $142 29. exd5 (29. Rxd5 Rxd5 30. exd5 Na5 $16) 29... Na5) 29. Nf6+ {[%emt 0:00:28]} Kg7 $2 {[%emt 0:00:30] [#]} (29... Kh8 {is more resistant.}) 30. Rxa5 $1 {[%emt 0:01:13] White is clearly winning.} Bxb3 {[%emt 0:01:16]} (30... Rd1+ 31. Bxd1) 31. Rxa8 {[%emt 0:00:13] Ne8+ is the strong threat.} Rd1+ {[%emt 0:00:23]} 32. Rf1 {[%emt 0:00:09]} Rxf1+ {[%emt 0:00:03]} 33. Kxf1 {[%emt 0:00:09]} Bc4+ {[%emt 0:00:04]} 34. Kf2 {[%emt 0:00:13]} Kxf6 {[%emt 0:00:06]} 35. Ke3 {[%emt 0:00:11] White took control after the opening.  Weighted Error Value: White=0.11 (very precise) /Black=0.46} 1-0

[Event "GER-ch Youth-U14 2022"]
[Site "Willingen"]
[Date "2022.06.08"]
[Round "5.12"]
[White "Uhlmann, Tim"]
[Black "Schwan, Aaron"]
[Result "1/2-1/2"]
[ECO "B41"]
[WhiteElo "1776"]
[BlackElo "1671"]
[Annotator "NA RC COMBH"]
[PlyCount "157"]
[EventDate "2022.06.05"]
[EventType "swiss"]
[EventRounds "9"]
[EventCountry "GER"]
[SourceTitle "playchess.com"]
[Source "ChessBase"]
[SourceQuality "1"]
[TimeControl "40/4500+30:900+30"]

1. e4 {[%emt 0:00:00]} c5 {[%emt 0:00:00]} 2. Nf3 {[%emt 0:00:00]} e6 {[%emt 0:00:00]} 3. d4 {[%emt 0:00:00]} cxd4 {[%emt 0:00:00]} 4. Nxd4 {[%emt 0:00:00]} a6 {[%emt 0:00:00]} 5. c4 {[%emt 0:00:00]} Qc7 {[%emt 0:00:00]} 6. Nc3 {[%emt 0:00:00]} Nf6 {[%emt 0:00:00]} 7. a3 {[%emt 0:00:00]} b6 {[%emt 0:00:00]} 8. Be3 {[%emt 0:00:00]} Bb7 {[%emt 0:00:00]} 9. f3 {[%emt 0:00:00]} d6 {[%emt 0:00:00]} 10. Be2 {[%emt 0:00:00]} Be7 {[%emt 0:00:00]} 11. O-O {[%emt 0:00:00]} Nbd7 {[%emt 0:00:00]} 12. Rc1 {[%emt 0:00:00]} O-O {[%emt 0:00:00]} 13. b4 {[%emt 0:00:00]} Rfc8 {[%emt 0:00:00]} 14. Kh1 {[%emt 0:00:00]} Qd8 {[%emt 0:00:00]} 15. Qb3 {[%emt 0:00:00]} Rab8 {[%emt 0:00:00]} 16. Rfd1 {[%emt 0:00:00]} Qf8 {[%emt 0:00:00]} 17. Bf1 {[%emt 0:00:00]} h5 {[%emt 0:01:31]} 18. Bf2 {[%emt 0:00:00]} Ne5 {[%emt 0:03:05]} 19. Nce2 {[%emt 0:14:44]} d5 {[%emt 0:14:55]} 20. cxd5 {[%emt 0:02:28]} exd5 {[%emt 0:01:15]} 21. Bg3 {[%emt 0:00:18]} Bd6 {[%emt 0:01:08]} 22. f4 {[%emt 0:00:15]} Neg4 {[%emt 0:04:36]} 23. e5 {[%emt 0:02:21]} Ne4 {[%emt 0:01:05]} 24. exd6 {[%emt 0:05:06]} Ngf2+ {[%emt 0:01:07]} 25. Bxf2 {[%emt 0:02:06]} Nxf2+ {[%emt 0:00:01]} 26. Kg1 {[%emt 0:00:23]} Nxd1 {[%emt 0:00:07]} 27. Rxd1 {[%emt 0:01:01]} Qxd6 {[%emt 0:00:37]} 28. Nf5 {[%emt 0:04:27]} Qf6 {[%emt 0:01:48]} 29. Ne3 {[%emt 0:10:10]} Rd8 {[%emt 0:11:05]} 30. Rd4 {[%emt 0:01:03]} b5 {[%emt 0:05:23]} 31. Qd3 {[%emt 0:07:11]} Rbc8 {[%emt 0:10:07]} 32. g3 {[%emt 0:07:31]} Qe6 {[%emt 0:06:00]} 33. Bg2 {[%emt 0:03:35]} Re8 {[%emt 0:02:30]} 34. Kf2 {[%emt 0:00:16]} Rc4 {[%emt 0:06:46]} 35. Qd2 {[%emt 0:14:20]} Rxd4 {[%emt 0:01:16]} 36. Qxd4 {[%emt 0:00:09]} g6 {[%emt 0:03:20]} 37. Nc1 {[%emt 0:03:03]} Kh7 {[%emt 0:09:04]} 38. Nd3 {[%emt 0:00:54]} Rd8 {[%emt 0:01:28]} 39. Nc5 {[%emt 0:01:18]} Qb6 {[%emt 0:00:01]} 40. Nc2 {[%emt 0:04:31]} Bc8 {[%emt 0:05:53]} 41. Ne1 {[%emt 0:23:12]} Bf5 {[%emt 0:16:20]} 42. Nf3 {[%emt 0:00:27]} f6 {[%emt 0:00:00]} 43. Nh4 {[%emt 0:00:00]} Bc2 {[%emt 0:00:00]} 44. Bf3 {[%emt 0:00:00]} Rd6 {[%emt 0:00:00]} 45. Ng2 {[%emt 0:00:00]} Qd8 {[%emt 0:00:00]} 46. Nb7 {[%emt 0:00:00]} Qb6 {[%emt 0:00:00]} 47. Qxb6 {[%emt 0:00:00]} Rxb6 {[%emt 0:00:00]} 48. Bxd5 {[%emt 0:00:00]} Bb3 {[%emt 0:00:00]} 49. Bxb3 {[%emt 0:00:00]} Rxb7 {[%emt 0:00:00]} 50. Ne3 {[%emt 0:00:00]} Rc7 {[%emt 0:00:00]} 51. a4 {[%emt 0:00:00]} Rc3 {[%emt 0:00:00]} 52. Bd1 {[%emt 0:00:00]} bxa4 {[%emt 0:00:00]} 53. Bxa4 {[%emt 0:00:00]} Ra3 {[%emt 0:00:00]} 54. Bd1 {[%emt 0:00:00]} Ra2+ {[%emt 0:00:00]} 55. Be2 {[%emt 0:00:00]} Kg7 {[%emt 0:00:00]} 56. Nd5 {[%emt 0:01:12]} a5 {[%emt 0:00:06]} 57. bxa5 {[%emt 0:00:27]} Rxa5 {[%emt 0:00:02]} 58. Ne3 {[%emt 0:00:46]} Ra2 {[%emt 0:00:28]} 59. h4 {[%emt 0:00:13]} g5 {[%emt 0:01:56]} 60. Ng2 {[%emt 0:01:12]} Kh6 {[%emt 0:01:18]} 61. Ke3 {[%emt 0:02:01]} Ra3+ {[%emt 0:00:39]} 62. Bd3 {[%emt 0:00:49]} Ra1 {[%emt 0:00:44]} 63. Ke4 {[%emt 0:02:49]} Ra3 {[%emt 0:02:41]} 64. Ne3 {[%emt 0:00:42]} gxf4 {[%emt 0:00:41]} 65. gxf4 {[%emt 0:00:13]} Kg7 {[%emt 0:00:27]} 66. Nf5+ {[%emt 0:00:28]} Kg6 {[%emt 0:00:01]} 67. Ne3 {[%emt 0:00:31]} Kg7 {[%emt 0:00:09]} 68. Be2 {[%emt 0:00:21]} Kg6 {[%emt 0:00:54]} 69. f5+ {[%emt 0:01:17]} Kh6 {[%emt 0:00:10]} 70. Ng2 {[%emt 0:01:00]} Ra5 {[%emt 0:00:31]} 71. Nf4 {[%emt 0:00:17]} Re5+ 72. Kd3 {[%emt 0:00:39]} Rxf5 {[%emt 0:00:21]} 73. Nxh5 {[%emt 0:00:23]} Rd5+ {[%emt 0:00:40]} 74. Ke3 {[%emt 0:00:20]} Re5+ {[%emt 0:00:04]} 75. Kf2 {[%emt 0:00:07]} Rxe2+ {[%emt 0:00:02]} 76. Kxe2 {[%emt 0:00:06]} Kxh5 {[%emt 0:00:02]} 77. Kf3 {[%emt 0:00:07]} Kxh4 {[%emt 0:02:59]} 78. Kf4 {[%emt 0:00:05]} f5 {[%emt 0:00:15]} 79. Kxf5 {[%emt 0:00:03]} 1/2-1/2

[Event "GER-ch Youth-U14 2022"]
[Site "Willingen"]
[Date "2022.06.08"]
[Round "5.13"]
[White "Fruth, David"]
[Black "Kieselbach, Jannik"]
[Result "1-0"]
[ECO "B90"]
[WhiteElo "1648"]
[BlackElo "1631"]
[Annotator "NA RC COMBH"]
[PlyCount "107"]
[EventDate "2022.06.05"]
[EventType "swiss"]
[EventRounds "9"]
[EventCountry "GER"]
[SourceTitle "playchess.com"]
[Source "ChessBase"]
[SourceQuality "1"]
[TimeControl "40/4500+30:900+30"]

1. e4 {[%emt 0:00:00]} c5 {[%emt 0:00:00]} 2. Nf3 {[%emt 0:00:00]} d6 {[%emt 0:00:00]} 3. d4 {[%emt 0:00:00]} cxd4 {[%emt 0:00:00]} 4. Nxd4 {[%emt 0:00:00]} Nf6 {[%emt 0:00:00]} 5. Nc3 {[%emt 0:00:00]} a6 {[%emt 0:00:00]} 6. Be3 {[%emt 0:00:00]} e5 {[%emt 0:00:00]} 7. Nb3 {[%emt 0:00:00]} Be7 {[%emt 0:00:00]} 8. Qd2 {[%emt 0:00:00]} Be6 {[%emt 0:00:00]} 9. f3 {[%emt 0:00:00]} O-O {[%emt 0:00:00]} 10. O-O-O {[%emt 0:00:00]} Nbd7 {[%emt 0:00:00]} 11. g4 {[%emt 0:00:00]} b5 {[%emt 0:00:00]} 12. Rg1 {[%emt 0:00:00]} Nb6 {[%emt 0:00:00]} 13. Na5 {[%emt 0:00:00]} Qc7 {[%emt 0:00:00]} 14. g5 {[%emt 0:00:19]} Nh5 {[%emt 0:00:00]} 15. Kb1 {[%emt 0:01:21]} Nc4 {[%emt 0:00:00]} 16. Nxc4 {[%emt 0:01:28]} bxc4 {[%emt 0:00:00]} 17. Nd5 {[%emt 0:03:51]} Bxd5 {[%emt 0:00:00]} 18. Qxd5 {[%emt 0:01:09]} Rfc8 {[%emt 0:00:35]} 19. Bh3 {[%emt 0:32:17]} Rcb8 {[%emt 0:03:18]} 20. Bg4 {[%emt 0:01:49]} Nf4 {[%emt 0:04:32]} 21. Bxf4 {[%emt 0:00:33]} exf4 {[%emt 0:00:10]} 22. c3 {[%emt 0:03:32]} Ra7 {[%emt 0:15:46]} 23. h4 {[%emt 0:04:45]} Rb5 {[%emt 0:00:44]} 24. Qd4 {[%emt 0:01:26]} Rab7 {[%emt 0:07:34]} 25. Rg2 {[%emt 0:01:56]} a5 {[%emt 0:16:08]} 26. Ka1 {[%emt 0:02:45]} a4 {[%emt 0:00:57]} 27. a3 {[%emt 0:00:17]} Rb8 {[%emt 0:16:23]} 28. Rdd2 {[%emt 0:06:16]} g6 {[%emt 0:14:26]} 29. h5 {[%emt 0:01:37]} Qc5 {[%emt 0:01:31]} 30. hxg6 {[%emt 0:01:04]} hxg6 {[%emt 0:01:05]} 31. Rh2 {[%emt 0:00:29]} Qxd4 {[%emt 0:00:05]} 32. Rxd4 {[%emt 0:00:04]} Rc5 {[%emt 0:01:05]} 33. Rhd2 {[%emt 0:05:56]} Rd8 {[%emt 0:01:40]} 34. Rd5 {[%emt 0:02:51]} Ra8 {[%emt 0:02:55]} 35. Rxc5 {[%emt 0:00:54]} dxc5 {[%emt 0:00:06]} 36. Rd5 {[%emt 0:00:08]} Ra7 {[%emt 0:01:23]} 37. Bh3 {[%emt 0:00:24]} Kg7 {[%emt 0:00:29]} 38. Rd7 {[%emt 0:01:43]} Rxd7 {[%emt 0:00:29]} 39. Bxd7 {[%emt 0:00:02]} Bxg5 {[%emt 0:00:24]} 40. Bxa4 {[%emt 0:00:04]} Kf6 {[%emt 0:01:33]} 41. Bb5 {[%emt 0:15:30]} Ke5 {[%emt 0:15:57]} 42. Bxc4 {[%emt 0:00:04]} f5 {[%emt 0:01:03]} 43. exf5 {[%emt 0:01:27]} Kxf5 {[%emt 0:00:58]} 44. Kb1 {[%emt 0:00:16]} Bd8 {[%emt 0:00:00]} 45. Kc2 {[%emt 0:00:00]} g5 {[%emt 0:00:00]} 46. Kd3 {[%emt 0:00:00]} Ke5 {[%emt 0:00:00]} 47. Ba6 {[%emt 0:00:00]} Kd5 {[%emt 0:00:00]} 48. Bb7+ {[%emt 0:00:00]} Kd6 {[%emt 0:00:00]} 49. Kc4 {[%emt 0:00:00]} Kc7 {[%emt 0:00:00]} 50. Be4 {[%emt 0:00:00]} Kb6 {[%emt 0:00:00]} 51. a4 {[%emt 0:00:00]} Be7 {[%emt 0:00:00]} 52. b4 {[%emt 0:00:00]} Bf8 {[%emt 0:00:00]} 53. bxc5+ {[%emt 0:00:00]} Kc7 {[%emt 0:00:00]} 54. Kb5 {[%emt 0:00:00]} 1-0

[Event "GER-ch Youth-U14 2022"]
[Site "Willingen"]
[Date "2022.06.08"]
[Round "5.14"]
[White "Mueller, Maximilian"]
[Black "Wunderlich, Elias"]
[Result "0-1"]
[ECO "C07"]
[WhiteElo "2299"]
[BlackElo "1619"]
[Annotator "TA"]
[PlyCount "56"]
[EventDate "2022.06.05"]
[EventType "swiss"]
[EventRounds "9"]
[EventCountry "GER"]
[SourceTitle "playchess.com"]
[Source "ChessBase"]
[SourceQuality "1"]
[TimeControl "40/4500+30:900+30"]

{[%evp 15,56,23,25,20,68,38,40,32,43,41,35,0,0,-6,-6,-51,-60,-64,-62,-267,-257,-279,-262,-316,-326,-410,-416,-393,-404,-400,-391,-391,-394,-388,-365,-389,-387,-618,-552,-587,-573,-1293,-1275]} 1. e4 {[%emt 0:00:00]} e6 {[%emt 0:00:00]} 2. d4 {[%emt 0:00:00]} d5 {[%emt 0:00:00]} 3. Nd2 {[%emt 0:00:00]} c5 {[%emt 0:00:00]} 4. exd5 {[%emt 0:00:00]} Qxd5 {[%emt 0:00:00]} 5. dxc5 {[%emt 0:00:00]} Bxc5 {[%emt 0:00:00]} 6. Ngf3 {[%emt 0:00:00]} Nf6 {[%emt 0:00:00]} 7. Bc4 {[%emt 0:00:00]} Qd6 {[%emt 0:00:00]} 8. O-O {[%emt 0:00:00]} O-O {[%emt 0:00:00]} 9. Qe2 {[%emt 0:00:00] C07: French Tarrasch: 3...c5, 4 Ngf3 and 4 exd5 Qxd5.} Rd8 {[%emt 0:00:00]} (9... Nbd7 $11) 10. Nb3 {[%emt 0:00:00]} Bb6 {[%emt 0:00:00]} 11. Bg5 {[%emt 0:00:00] [#] White is slightly better.} Nc6 $146 {[%emt 0:00:00][%cal Bb8c6,Bc6e7,Be7g6,Bg6f4,Bf4e2][%mdl 32]} ({Predecessor:} 11... Qe7 12. Rad1 Bd7 13. Ne5 Bc7 14. Ng4 Kh8 15. Bd3 Rg8 16. Nxf6 gxf6 17. Qh5 Rg7 {1-0 (40) Matus,F (1685)-Kabelka,T (1476) Kouty nad Desnou 2017}) 12. Rfe1 {[%emt 0:04:14]} Bd7 {[%emt 0:00:00]} 13. Bxf6 {[%emt 0:11:32]} gxf6 {[%emt 0:00:00]} 14. Qe4 {[%emt 0:00:18]} Qf8 {[%emt 0:00:54]} 15. Qh4 {[%emt 0:02:04]} Qg7 {[%emt 0:01:24]} 16. Rad1 {[%emt 0:01:30]} Ne7 {[%emt 0:01:54] ...Ng6 is the strong threat.} 17. Rd3 $2 {[%emt 0:06:52] This move loses the game for White.} (17. c3 $15) 17... Ng6 $19 {[%emt 0:01:43]} 18. Qg3 {[%emt 0:00:50] [#]} Rac8 $1 {[%emt 0:00:54]} 19. Nbd2 {[%emt 0:00:33]} Bc7 {[%emt 0:00:51] A strong pair of Bishops.} 20. Qh3 {[%emt 0:04:58]} Nf4 {[%emt 0:00:23][%csl LRd3,LRh3]} 21. Qg3 {[%emt 0:00:40] [#]} Ne2+ $1 {[%emt 0:00:11][%mdl 512]} 22. Rxe2 {[%emt 0:00:52] Strongly threatening Qh4.} Bxg3 {[%emt 0:00:06]} 23. hxg3 {[%emt 0:00:04]} Bc6 {[%emt 0:01:49]} 24. Nd4 {[%emt 0:00:25]} Bd5 {[%emt 0:05:00]} 25. Bxd5 {[%emt 0:00:38]} Rxd5 {[%emt 0:00:23]} ({Weaker is} 25... exd5 26. Nf5 Qg5 27. Ne7+ Kf8 28. Nxc8 Rxc8 29. Nb3 $17) 26. c4 {[%emt 0:00:05]} (26. Nf1 $142) 26... Rdd8 {[%emt 0:02:08] White must now prevent ...Qg6. Black is clearly winning.} 27. Ree3 {[%emt 0:00:51]} f5 {[%emt 0:01:37]} 28. f4 {[%emt 0:00:35]} Rxd4 {[%emt 0:00:11] Weighted Error Value: White=0.71/Black=0.07 (flawless)} 0-1